Cogmind - Beta 12 X4 @@@ ROGUE MODE // 2023.01.04 @ 21:58:37 Player: Lunatic Blue Result: Self-destructed Performance ------------- Evolutions (1) 500 Regions Visited (6) 1200 Robots Destroyed (43) 215 Value Destroyed (777) 777 Prototype IDs (27) 540 Alien Tech Used (0) 0 Bonus (80) 80 TOTAL SCORE: 3312 Bonus ------- Follower Combat Kills 46 Aligned with FarCom 300 Friendly Fire -266 Cogmind --------- Core Integrity 392/400 Matter 284/300 Energy 250/250 System Corruption 0% Temperature Cool (0) Movement Treading (240) Ox1 Location -8/Mines Parts ------- > --- POWER (1) -------- Ion Engine > --- PROPULSION (3) --- Light Treads Light Treads Light Treads > --- UTILITY (3) ------ Heat Sink Huge Storage Unit > --- WEAPON (2) ------- Autogun Autogun > --- INVENTORY (25) --- Ion Engine Light Nuclear Core Light Treads Light Treads Light Treads Flight Unit Flight Unit Flight Unit Flight Unit Improved Flight Unit Heat Sink Medium Storage Unit Small Matter Pod (50) Machine Analyzer Signal Interpreter Improved Terrain Scanner Propulsion Shielding Improved Trap Extractor (0/6) Autogun Improved Assault Rifle Improved Assault Rifle Rocket Launcher Mini Grenade Launcher Plasma Cutter Peak State ------------ > --- POWER ------------ Light Nuclear Core > --- PROPULSION ------- Light Treads Compact Wheel > --- UTILITY ---------- Huge Storage Unit Light Armor Plating > --- WEAPON ----------- Autogun Autogun > --- INVENTORY -------- Light Ion Engine Light Treads Light Treads Light Treads Light Treads Wheel Compact Wheel Compact Wheel Flight Unit Heat Sink Medium Storage Unit Small Matter Pod Machine Analyzer Signal Interpreter Terrain Scan Processor Particle Gun Particle Gun Autogun Autogun Grenade Launcher Mining Laser Plasma Cutter [Rating: 14] Favorites ----------- Power Ion Engine Engine Ion Engine Power Core Light Nuclear Core Propulsion Light Treads Treads Light Treads Wheel Wheel Utility Huge Storage Unit Device Heat Sink Storage Huge Storage Unit Protection Light Armor Plating Weapon Autogun Energy Gun Small Laser Ballistic Gun Autogun Launcher Mini Grenade Launcher Build | -11 -10 -10 -9 -9 -9 -8 ------- Run | Scr Mat Min Mat Min Exi Min Slots Evolved 2 | . . . 2 . . . Power . | . . . . . . . Propulsion 1 | . . . 1 . . . Utility 1 | . . . 1 . . . Weapon . | . . . . . . . Parts Attached 32 | 7 14 3 6 2 . . Power 5 | 1 2 2 . . . . Engine 4 | 1 1 2 . . . . Core 1 | . 1 . . . . . Reactor . | . . . . . . . Propulsion 11 | 2 5 1 3 . . . Treads 6 | 1 2 . 3 . . . Leg . | . . . . . . . Wheel 5 | 1 3 1 . . . . Hover . | . . . . . . . Flight . | . . . . . . . Utility 5 | 1 3 . 1 . . . Device 2 | . 1 . 1 . . . Storage 2 | 1 1 . . . . . Processor . | . . . . . . . Hackware . | . . . . . . . Protection 1 | . 1 . . . . . Artifact . | . . . . . . . Weapon 11 | 3 4 . 2 2 . . Energy Gun 3 | 2 1 . . . . . Energy Cannon . | . . . . . . . Ballistic Gun 7 | 1 3 . 2 1 . . Ballistic Cannon . | . . . . . . . Launcher 1 | . . . . 1 . . Special Weapon . | . . . . . . . Impact Weapon . | . . . . . . . Slashing Weapon . | . . . . . . . Piercing Weapon . | . . . . . . . Special Melee Weapon . | . . . . . . . Unidentified Prototypes 2 | . . . 2 . . . Parts Lost 14 | . 9 4 1 . . . Power 4 | . 2 2 . . . . Propulsion 6 | . 4 1 1 . . . Utility 2 | . 1 1 . . . . Weapon 2 | . 2 . . . . . Highest Loss Streak 3 | . 3 2 1 . . . To Critical Strikes . | . . . . . . . Average Slot Usage (%) 90 | . 96 85 87 88 88 . Engine 9 | . 6 13 11 11 11 . Core 2 | . 6 . . . . . Treads 23 | . 14 14 32 33 33 . Wheel 5 | . 11 14 . . . . Device 9 | . 10 . 11 11 11 . Storage 12 | . 15 14 11 11 11 . Energy Gun 7 | . 20 . . . . . Ballistic Gun 16 | . 7 28 22 22 22 . Naked Turns . | . . . . . . . Heaviest Build 94 | 13 94 91 92 92 92 92 Greatest Support 60 | 20 40 16 60 60 60 60 Greatest Overweight (x) 9 | 1 9 5 1 1 1 1 Average Overweight (x) 2 | . 5 5 1 1 1 1 Largest Inventory Capacity 25 | 8 25 25 25 25 25 25 Average Capacity 18 | 7 24 25 25 25 25 25 Most Carried 25 | 5 25 25 25 25 24 24 Average Carried 14 | 4 15 23 22 24 24 24 Final Capacity 25 | 8 25 25 25 25 25 25 Final Carried 25 | 5 23 25 25 24 24 24 Class Distribution -------------------- 100% | Mutant Dominant Class ---------------- Mutant | -10/Materials Mutant | -10/Mines Mutant | -9/Materials Mutant | -9/Mines Mutant | -9/Exiles Mutant | -8/Mines Resources | -11 -10 -10 -9 -9 -9 -8 ----------- Run | Scr Mat Min Mat Min Exi Min Matter Collected 986 | 286 292 195 151 62 . . Remotely . | . . . . . . . Salvage Created 1530 | 30 722 356 344 78 . . Parts 86 | 4 43 22 13 4 . . Haulers Intercepted 3 | . . . 3 . . . Recyclers Shooed 2 | . 1 . 1 . . . Parts Field Recycled . | . . . . . . . Retrieved Matter . | . . . . . . . Parts Self-Destructed . | . . . . . . . Prevented . | . . . . . . . Kills | -11 -10 -10 -9 -9 -9 -8 ------- Run | Scr Mat Min Mat Min Exi Min Combat Hostiles Destroyed 22 | 2 12 6 . 2 . . Guns 20 | 2 12 6 . . . . AOE 2 | . . . . 2 . . Classes Destroyed 11 | 2 8 . 1 . . . Worker 4 | . 1 1 1 1 . . Builder 2 | . 2 . . . . . Tunneler 3 | 2 . 1 . . . . Hauler 3 | . . . 3 . . . Recycler 5 | . 3 . 2 . . . Mechanic 1 | . 1 . . . . . Operator 1 | . 1 . . . . . Watcher 2 | . 1 . 1 . . . Swarmer 5 | . 3 . . 2 . . Grunt 17 | . 9 7 . 1 . . Assembled 2 | 2 . . . . . . Best Kill Streak 4 | 2 4 2 4 2 . . Combat Bots Only 3 | 1 3 2 . 2 . . Max Kills in Single Turn 3 | 1 1 1 2 3 . . Gunslinging . | . . . . . . . Exploded 2 | . . . . 2 . . Melee . | . . . . . . . Uniques/NPCs Destroyed . | . . . . . . . Combat | -11 -10 -10 -9 -9 -9 -8 -------- Run | Scr Mat Min Mat Min Exi Min Damage Taken 1462 | 41 909 406 14 92 . . Core 213 | 21 148 36 . 8 . . Absorbed by Shields . | . . . . . . . Core Remaining (%) 54 | 91 . 18 . . . . Volleys Fired 120 | 6 68 32 10 2 2 . Largest 2 | 2 2 2 2 2 2 . Hottest 105 | 60 105 46 46 46 46 . Shots Fired 215 | 12 135 41 20 3 4 . Gun 214 | 12 135 41 20 2 4 . Cannon . | . . . . . . . Launcher 1 | . . . . 1 . . Special . | . . . . . . . Kinetic 117 | 6 44 41 20 2 4 . Thermal 97 | 6 91 . . . . . Explosive 1 | . . . . 1 . . Electromagnetic . | . . . . . . . Robot Hit Streak 16 | 2 16 7 4 4 . . Robot Miss Streak 4 | 2 3 3 4 . . . Penetration Max . | . . . . . . . Secondary Targets 1 | . 1 . . . . . Max Gunslinging Chain 1 | . 1 . . . . . Shots Hit Robots 132 | 5 87 26 13 1 . . Core Hits 66 | 4 36 15 7 4 . . Critical Kills . | . . . . . . . Critical Parts Destroyed . | . . . . . . . Critical Strikes . | . . . . . . . Melee Attacks . | . . . . . . . Impact . | . . . . . . . Slashing . | . . . . . . . Piercing . | . . . . . . . Sneak Attacks . | . . . . . . . Combat Hostiles . | . . . . . . . Follow-up Attacks . | . . . . . . . Damage Inflicted 2052 | 56 1134 453 244 165 . . Guns 1905 | 56 1134 453 244 18 . . Cannons . | . . . . . . . Explosions 147 | . . . . 147 . . Melee . | . . . . . . . Ramming . | . . . . . . . Kinetic 1207 | 23 469 453 244 18 . . Thermal 698 | 33 665 . . . . . Explosive 147 | . . . . 147 . . Electromagnetic . | . . . . . . . Impact . | . . . . . . . Slashing . | . . . . . . . Piercing . | . . . . . . . Highest Corruption 4 | . 4 4 . . . . Average Corruption 3 | . 3 4 . . . . Corruption Purged . | . . . . . . . Corruption Blocked . | . . . . . . . Effects 26 | . 13 13 . . . . Message Errors 5 | . 3 2 . . . . Matter Fused 11 | . 5 6 . . . . Heat Flow Errors 4 | . 1 3 . . . . Energy Discharges 1 | . 1 . . . . . Data Loss (minor) 1 | . . 1 . . . . Data Loss (major) 1 | . 1 . . . . . Misfires 3 | . 2 1 . . . . Overload Shots . | . . . . . . . Overflow Damage . | . . . . . . . Projectiles . | . . . . . . . Explosions . | . . . . . . . Melee . | . . . . . . . Knockbacks . | . . . . . . . Impact . | . . . . . . . Kinetic . | . . . . . . . Secondary . | . . . . . . . Self-Inflicted Damage 39 | . . . . 39 . . Shots 1 | . . . . 1 . . Rammed . | . . . . . . . Targets Rammed . | . . . . . . . Kicked . | . . . . . . . Crushed . | . . . . . . . Highest Temperature 369 | . 369 355 . . . . Average Temperature 109 | . 109 110 . . . . Received Heat Transfer 645 | . 411 234 . . . . Effects 6 | . 5 1 . . . . Shutdowns 1 | . 1 . . . . . Interference 4 | . 3 1 . . . . Short Circuit 1 | . 1 . . . . . Siege Activations . | . . . . . . . Robots Corrupted . | . . . . . . . Combat Hostiles . | . . . . . . . Parts Fried . | . . . . . . . Impact Corruptions . | . . . . . . . Robots Melted . | . . . . . . . Combat Hostiles . | . . . . . . . Parts Melted 2 | . 2 . . . . . Heat Transferred 1604 | 75 1529 . . . . . Parts Sabotaged . | . . . . . . . Parts Stolen . | . . . . . . . Parts Stripped . | . . . . . . . Power Chain Reactions . | . . . . . . . Missiles Intercepted . | . . . . . . . Alert | -11 -10 -10 -9 -9 -9 -8 ------- Run | Scr Mat Min Mat Min Exi Min Peak Influence 145 | 10 120 145 41 141 . . Initial 25 | . . 25 . 15 . . Average 30 | 1 38 89 11 77 . . Maximum Alert Level . | . . . . . . . Low Security (%) 100 | 100 100 100 100 100 . 100 Level 1 . | . . . . . . . Level 2 . | . . . . . . . Level 3 . | . . . . . . . Level 4 . | . . . . . . . Level 5 . | . . . . . . . High Security . | . . . . . . . Max Security . | . . . . . . . Squads Dispatched 3 | . 3 . . . . . Investigation 2 | . 2 . . . . . Extermination . | . . . . . . . Reinforcement 1 | . 1 . . . . . Assault . | . . . . . . . Garrison . | . . . . . . . Intercept . | . . . . . . . Searches Triggered . | . . . . . . . Construction Impeded . | . . . . . . . Haulers Reinforced . | . . . . . . . Active Scanning Responses . | . . . . . . . Cargo Convoy Interrupts . | . . . . . . . Stealth | -11 -10 -10 -9 -9 -9 -8 --------- Run | Scr Mat Min Mat Min Exi Min Distress Signals 1 | . . . 1 . . . Communications Jammed . | . . . . . . . Distress Signals . | . . . . . . . Times Spotted 39 | 2 18 6 7 6 . . Peak Tracking Total 3 | 2 3 2 3 3 . . Tactical Retreats 1 | 1 . . . . . . Traps | -11 -10 -10 -9 -9 -9 -8 ------- Run | Scr Mat Min Mat Min Exi Min Traps Triggered 4 | . 3 . . 1 . . Indirectly . | . . . . . . . Trap Hack Attempts . | . . . . . . . Triggered . | . . . . . . . Disarmed . | . . . . . . . Reprogrammed . | . . . . . . . Reused . | . . . . . . . Traps Extracted . | . . . . . . . Installed . | . . . . . . . Triggered . | . . . . . . . Machines | -11 -10 -10 -9 -9 -9 -8 ---------- Run | Scr Mat Min Mat Min Exi Min Machines Disabled 5 | . . . . 2 3 . Max in Single Turn 2 | . . . . 2 2 . Machines Sabotaged . | . . . . . . . Overloaded Fab Kills . | . . . . . . . Hacking | -11 -10 -10 -9 -9 -9 -8 --------- Run | Scr Mat Min Mat Min Exi Min Machines Accessed 11 | . 5 . 3 1 2 . Terminals 5 | . 3 . 2 . . . Fabricators . | . . . . . . . Repair Stations . | . . . . . . . Recycling Units 3 | . 2 . 1 . . . Scanalyzers . | . . . . . . . Garrison Access . | . . . . . . . Total Hacks 21 | . 9 . 9 1 2 . Successful 11 | . 4 . 4 1 2 . Failed 10 | . 5 . 5 . . . Catastrophic 1 | . 1 . . . . . Database Lockouts . | . . . . . . . Manual 11 | . 4 . 6 . 1 . Terminals 13 | . 7 . 6 . . . Fabricators . | . . . . . . . Repair Stations . | . . . . . . . Recycling Units 5 | . 2 . 3 . . . Scanalyzers . | . . . . . . . Garrison Access . | . . . . . . . Terminal Hacks 6 | . 2 . 1 1 2 . Record 1 | . . . . . 1 . Prototype ID Bank 1 | . . . 1 . . . Open Door 1 | . . . . 1 . . Unreport Threat 2 | . 2 . . . . . EX-Prototype ID Bank 1 | . . . . . 1 . Fabricator Hacks . | . . . . . . . Repair Station Hacks . | . . . . . . . Recycling Unit Hacks 1 | . . . 1 . . . Retrieve Components 1 | . . . 1 . . . Scanalyzer . | . . . . . . . Garrison Access Hacks . | . . . . . . . Unauthorized Hacks 4 | . 2 . 2 . . . Terminals 1 | . . . 1 . . . Operators 1 | . . . 1 . . . Fabricators . | . . . . . . . Repair Stations . | . . . . . . . Recycling Units 3 | . 2 . 1 . . . Reject 1 | . . . 1 . . . Tunnel 2 | . 2 . . . . . Scanalyzers . | . . . . . . . Garrison Access . | . . . . . . . Data Cores Recovered . | . . . . . . . Used . | . . . . . . . Hacking Detections 6 | . 3 . 3 . . . Full Trace Events . | . . . . . . . Feedback Events . | . . . . . . . Feedback Blocked . | . . . . . . . Robot Schematics Acquired . | . . . . . . . Robots Built . | . . . . . . . Authchips . | . . . . . . . Time . | . . . . . . . Total Robot Build Rating . | . . . . . . . Part Schematics Acquired . | . . . . . . . Parts Built . | . . . . . . . Authchips . | . . . . . . . Time . | . . . . . . . Total Part Build Rating . | . . . . . . . Parts Repaired . | . . . . . . . Time . | . . . . . . . Parts Recycled . | . . . . . . . Recycled Matter . | . . . . . . . Retrieved Matter . | . . . . . . . Retrieved Components 10 | . . . 10 . . . Parts Scanalyzed . | . . . . . . . Part Schematics Acquired . | . . . . . . . Parts Damaged . | . . . . . . . Bothacking | -11 -10 -10 -9 -9 -9 -8 ------------ Run | Scr Mat Min Mat Min Exi Min Used RIF Installer . | . . . . . . . Robots Hacked . | . . . . . . . Non-combat . | . . . . . . . Combat . | . . . . . . . Robot Hacks Applied . | . . . . . . . Relay Couplers Released . | . . . . . . . Fabnet Peak Effective % . | . . . . . . . Robots Rewired . | . . . . . . . Allies Hacked . | . . . . . . . Hacks Repelled . | . . . . . . . Allies | -11 -10 -10 -9 -9 -9 -8 -------- Run | Scr Mat Min Mat Min Exi Min Total Allies 4 | . . 3 . 1 . . Largest Group 3 | . . 3 2 2 . . Highest-Rated Group 47 | . . 40 32 47 . . Highest-Rated Ally 31 | . . 16 16 31 . . Total Orders . | . . . . . . . Ally Attacks 20 | . . . 4 16 . . Total Damage 180 | . . . 63 117 . . Kills 4 | . . . 1 3 . . Allies Corrupted . | . . . . . . . Allies Melted . | . . . . . . . Intel | -11 -10 -10 -9 -9 -9 -8 ------- Run | Scr Mat Min Mat Min Exi Min Robot Analysis Total . | . . . . . . . Derelict Logs Recovered 3 | . . 1 . 2 . . Drone Launches . | . . . . . . . Drone Recoveries . | . . . . . . . Exploration | -11 -10 -10 -9 -9 -9 -8 ------------- Run | Scr Mat Min Mat Min Exi Min Turns Passed 6554 | 2473 1564 446 593 884 591 3 Spaces Moved 2445 | 787 628 206 222 356 245 1 Core 2 | 2 . . . . . . Treads 887 | 1 62 . 222 356 245 1 Legs . | . . . . . . . Wheels 1556 | 784 566 206 . . . . Hover . | . . . . . . . Flight . | . . . . . . . Fastest Speed 50 | 50 95 175 240 240 240 240 Average Speed 178 | 94 205 175 240 240 240 240 Slowest Speed 480 | 160 480 175 240 240 240 240 Overloaded Moves . | . . . . . . . Propulsion Burnouts . | . . . . . . . Robots Hopped . | . . . . . . . Cave-ins Triggered . | . . . . . . . Exploration Rate (%) 52 | 77 74 43 25 82 61 7 Regions Visited 6 Branch Regions 4 Pre-discovered Areas 5 | . 2 1 . 1 1 . Known Exits Taken . | . . . . . . . Unknown Exits Taken 6 | 1 1 1 1 1 1 . Scrap Searched 1 | . . . . 1 . . Spaces Dug . | . . . . . . . Terrain Destroyed 7 | . . . . 7 . . Melee . | . . . . . . . Projectile . | . . . . . . . AOE 7 | . . . . 7 . . Terrain Rammed . | . . . . . . . Walls Destroyed . | . . . . . . . Machines Disabled . | . . . . . . . Actions | -11 -10 -10 -9 -9 -9 -8 --------- Run | Scr Mat Min Mat Min Exi Min Total 4434 | 2500 771 260 269 387 246 1 Wait 1772 | 1696 30 15 14 17 . . Move 2439 | 786 627 205 221 355 244 1 Hop . | . . . . . . . Pick Up 52 | 5 27 5 10 5 . . Fast Attach 11 | 6 5 . . . . . Attach 15 | . 8 3 4 . . . Detach 1 | . 1 . . . . . Swap 7 | 1 1 . 3 2 . . Drop 17 | . 4 . 7 6 . . Fire 120 | 6 68 32 10 2 2 . Melee . | . . . . . . . Ram . | . . . . . . . Kick . | . . . . . . . Crush . | . . . . . . . Escape Stasis . | . . . . . . . Rewire . | . . . . . . . Trap . | . . . . . . . Miscellaneous . | . . . . . . . Route ------- -11/Scrapyard -10/Materials (discovered 3 exits: *Mat x2 / [*Min]) -10/Mines -9/Materials (discovered 2 exits: [*Mat] / *Min) -9/Mines (discovered 4 exits: [*Mat x2] / *Exi / [*Zio]) -9/Exiles -8/Mines History --------- Turn | Location | Event 16 | -11/Scrapyard | Discovered new exit (range 15) 1676 | -11/Scrapyard | Assembled infested the area 2474 | -11/Scrapyard | Entered Materials 2475 | -10/Materials | Build established: Mutant 2498 | -10/Materials | Discovered new exit (range 12) 2901 | -10/Materials | Lost 3 parts (1p1n1w) 2996 | -10/Materials | Discovered new exit (range 11) 3021 | -10/Materials | Core integrity fell below 50% 3671 | -10/Materials | Discovered new exit (range 6) 3868 | -10/Materials | Lost 3 parts (1n1u1w) 4038 | -10/Materials | Entered Mines 4139 | -10/Mines | Core integrity fell below 20% 4301 | -10/Mines | Assisted by bots powering up and referring to "LRC-V3" 4466 | -10/Mines | Discovered new exit (range 9) 4484 | -10/Mines | Entered Materials 4484 | -9/Materials | Accompanied by 2 allies 4484 | -9/Materials | Evolved 2 slots: Propulsion x1, Utility x1 4685 | -9/Materials | Discovered new exit (range 3) 5054 | -9/Materials | Discovered new exit (range 8) 5077 | -9/Materials | Entered Mines 5077 | -9/Mines | Accompanied by 2 allies 5085 | -9/Mines | Learned Materials stockpile data 5099 | -9/Mines | Discovered new exit (range 9) 5304 | -9/Mines | A Derelict revealed a hidden shortcut to a safe place 5413 | -9/Mines | Received a Rocket Launcher from a helpful Derelict 5489 | -9/Mines | Discovered new exit (range 8) 5494 | -9/Mines | Received a Mining Laser from a helpful Derelict 5616 | -9/Mines | Learned location of Zion (-7) 5871 | -9/Mines | Met a Derelict who couldn't figure out how to use a Trap Extractor 5951 | -9/Mines | Deemed a non-threat by the Exiles lab entrance 5951 | -9/Mines | Discovered new exit (range 5) 5961 | -9/Mines | Entered Exiles 6019 | -9/Exiles | Met 8R-AWN 6062 | -9/Exiles | Met EX-HEX 6129 | -9/Exiles | Met EX-BIN 6156 | -9/Exiles | Aligned with FarCom system 6158 | -9/Exiles | Given EX-Vault access code 6213 | -9/Exiles | Opened EX-Vault 6266 | -9/Exiles | Warned to stay clear of 0b10 Research branches 6310 | -9/Exiles | Exiles lab attacked by MAIN.C 6432 | -9/Exiles | Discovered new exit (range 10) 6552 | -9/Exiles | Entered Mines 6555 | -8/Mines | Self-destructed Last Messages --------------- 06360_ Connecting with EX-Message Board... >> PINNED - TO ALL TESTERS: Stay away from Zion. Imprinter means us harm and is serious about it. World map confirmed: -7/Zion. 06362_ 8R-AWN: "I'll cover you all, get out of here!" 06432_ EXIT=FOUND 06434_ DK-RAY exits level. 06439_ 5L-KAT exits level. 06442_ BD-0LR(z) exits level. 06446_ AM-PHS exits level. 06448_ GM-J5T exits level. 06453_ ZX-C33 exits level. 06492_ Machine disabled. LOCATION=UNKNOWN GOAL=ESCAPE 06552_ Receiving FarCom transmissions... 06553_ 5L-KAT: "That was close. Too bad in all the rush we got split up from the others." 06553_ K-01 Serf collects debris. Map ----- +----------------------------------------------------+ | | | | | | | | | | | | | | | | | | | | | | | | | | | | | | | | | | | | | | | ????????????????????????????????? | | ????????????????????????????????? | | ????????????????????????????????? | | ????????????????????????????????? | | ?????????????????????????#######? | | ?????????????# ######## #? | | ???????????# @ #? | | ??????????# z k#? | | ??????????# ## k#? | | ??????????? """ ?# #? | | ?????????????"" ??# """ #? | | ?????????????"" ???# """ #? | | ????????????? ????# """ #? | | ???????????? ## #????# #? | | ??????????????## #?????# ?#? | | ???????????????# ???????###???? | | ???????????????###??????????????? | | ????????????????????????????????? | | ????????????????????????????????? | | ????????????????????????????????? | | ????????????????????????????????? | | ????????????????????????????????? | | ????????????????????????????????? | | ????????????????????????????????? | | ????????????????????????????????? | | ????????????????????????????????? | | ????????????????????????????????? | | ????????????????????????????????? | | ????????????????????????????????? | | ????????????????????????????????? | | ????????????????????????????????? | +----------------------------------------------------+ Best States ------------- Heat Dissipation 38 Energy Generation 14 Energy Capacity 250 Matter Stores 300 Matter Capacity 300 Sight Range 16 Terrain Scan Density 10 Armor Coverage 150 Evasion (%) 44 Recoil Reduction 3 Item Schematics ----------------- None Robot Schematics ------------------ None Fabricated ------------ Nothing Alien Tech Used ----------------- None Achievements -------------- Curiosity Killed The Cat Challenges ------------ None Game ------ Seed BehemothHypercooledPlating Manual? 0 Play Time 00:22:42 Cumulative 188.3 hours Start 2023.01.04 @ 21:36:01 End 2023.01.04 @ 21:58:37 Sessions 1 Manual Loads 0 Difficulty Rogue Special Mode None Game No. 263 Rogue 263 Adventurer 0 Explorer 0 Win Type - Total 5 Types 1/0/3/0/0/0/1/0/0 Lore% 71 Gallery% 83 Achievement% 64 Wizard Run 0 Options --------- ASCII 0 Keyboard 0 Movement Numpad Keybinds 0 Fullscreen 1 Font 18/SmallcapsGlow Map View 76x50 Tactical HUD 1 Map Filters NONE Filters NONE Steam 1 RUN: aa579ada-7892-42f4-8311-9ce1f0f1bd45